bitfinex/quotes_BTCUSD_20250608
["timestamp","ask_amount","ask_price","bid_price","bid_amount"]
[1749403635398,0.22765914,106420.0,106410.0,1.5775027]
[1749403635597,0.24528482,106420.0,106410.0,1.5775027]
[1749403635811,0.22765914,106420.0,106410.0,1.5775027]
[1749403636840,0.22765914,106420.0,106410.0,1.56810545]
[1749403637046,0.22765914,106420.0,106410.0,1.57750279]
[1749403637251,0.22765914,106420.0,106410.0,1.57607919]
[1749403637812,0.22765914,106420.0,106410.0,1.28915919]
[1749403638225,0.22765914,106420.0,106410.0,1.57607919]
[1749403638428,0.24528484,106420.0,106410.0,1.57607919]
[1749403639684,0.24528484,106420.0,106410.0,1.28915919]
[1749403639895,0.22765914,106420.0,106410.0,1.58547644]
[1749403640590,0.22765914,106420.0,106410.0,1.29855644]
[1749403640789,0.22765914,106420.0,106410.0,1.58547644]
[1749403641535,0.22765914,106420.0,106410.0,1.29855644]
[1749403641729,0.22765914,106420.0,106410.0,1.58547644]
[1749403642652,0.22765914,106420.0,106410.0,1.29855644]
[1749403642852,0.22765914,106420.0,106410.0,1.58547644]
[1749403643082,0.13977914,106420.0,106410.0,1.58547644]
[1749403643255,0.22761914,106420.0,106410.0,1.58547644]
[1749403643505,0.22761914,106420.0,106410.0,1.29855644]
[1749403643757,0.22761914,106420.0,106410.0,1.57607919]
[1749403644695,0.22761914,106420.0,106410.0,0.64329101]
[1749403644922,0.31600036,106420.0,106410.0,0.09497588]
[1749403645133,0.22266646,106400.0,106380.0,0.23194322]
[1749403645358,0.01879787,106390.0,106380.0,1.48521626]
[1749403645572,0.01879787,106390.0,106380.0,2.46470915]
[1749403645573,0.02819716,106390.0,106380.0,2.46470915]
[1749403645787,0.0281968,106390.0,106380.0,2.46470915]
[1749403646013,0.0281968,106390.0,106380.0,1.82838951]
[1749403646235,0.22558368,106390.0,106380.0,2.1392507]
[1749403646452,0.22558368,106390.0,106380.0,2.48865052]
[1749403646676,0.22558368,106390.0,106380.0,1.33341103]
[1749403646677,0.20678608,106390.0,106380.0,1.33341103]
[1749403646885,0.20678608,106390.0,106380.0,1.62973129]
[1749403646886,0.22268608,106390.0,106380.0,1.62973129]
[1749403647096,0.22268608,106390.0,106380.0,1.33341103]
[1749403647318,0.22268608,106390.0,106380.0,1.6297312]
[1749403647565,0.21328688,106390.0,106380.0,1.62233103]
[1749403647994,0.21328688,106390.0,106380.0,1.62033103]
[1749403648203,0.21328688,106390.0,106380.0,1.63273129]
[1749403648400,0.21328688,106390.0,106380.0,1.63073129]
[1749403648833,0.21328688,106390.0,106380.0,1.63273129]
[1749403650146,0.21328688,106390.0,106380.0,1.54321672]
[1749403650361,0.21328688,106390.0,106380.0,1.62333103]
[1749403650568,0.21328688,106390.0,106380.0,1.63273129]
[1749403651185,0.21328688,106390.0,106380.0,1.34581129]
[1749403651391,0.21328688,106390.0,106380.0,1.63273129]
[1749403651819,0.21328688,106390.0,106380.0,1.83013672]
[1749403652695,0.21328688,106390.0,106380.0,1.63273129]
[1749403652919,0.21328688,106390.0,106380.0,1.62333103]
[1749403653131,0.21328688,106390.0,106380.0,1.33641103]
[1749403653132,0.20388759,106390.0,106380.0,1.33641103]
[1749403653339,0.20388759,106390.0,106380.0,1.62333103]
[1749403653576,0.20388759,106390.0,106380.0,1.33641103]
[1749403653797,0.20388759,106390.0,106380.0,1.63273129]
[1749403654682,0.20388759,106390.0,106380.0,1.33641103]
[1749403654894,0.20388759,106390.0,106380.0,2.2289447]
[1749403655104,0.20388759,106390.0,106380.0,2.41694996]
[1749403656713,0.20388759,106390.0,106380.0,2.42635013]
[1749403657112,0.18798759,106390.0,106380.0,2.42635013]
[1749403657516,0.18798759,106390.0,106380.0,2.43575021]
[1749403657717,0.20338759,106390.0,106380.0,2.41694996]
[1749403659231,0.18798759,106390.0,106380.0,2.42635013]
[1749403667311,0.18798759,106390.0,106380.0,2.41694996]
[1749403667513,0.18798759,106390.0,106380.0,2.42635013]
[1749403668393,0.18798759,106390.0,106380.0,2.13939013]
[1749403668625,0.18798759,106390.0,106380.0,2.42635013]
[1749403669861,0.18798759,106390.0,106380.0,2.43575021]
[1749403670359,0.19738688,106390.0,106380.0,2.45455002]
[1749403670556,0.19738688,106390.0,106380.0,2.4766502]
[1749403670909,0.2067859,106390.0,106380.0,2.4860501]
[1749403671111,0.21618527,106390.0,106380.0,2.48604966]
[1749403671354,0.21618527,106390.0,106380.0,2.47664984]
[1749403672498,0.21618527,106390.0,106380.0,2.48604966]
[1749403673941,0.02819768,106390.0,106380.0,2.48604966]
[1749403674144,0.02819768,106390.0,106380.0,2.48604913]
[1749403674352,0.21618527,106390.0,106380.0,2.48604913]
[1749403675171,0.21618527,106390.0,106380.0,2.47664949]
[1749403677176,0.21618527,106390.0,106380.0,2.48604922]
[1749403677804,0.21618527,106390.0,106380.0,2.48600922]
[1749403683811,0.21618527,106390.0,106380.0,2.16758922]
[1749403684020,0.23148527,106390.0,106380.0,1.82073637]
[1749403684224,0.23148527,106390.0,106380.0,1.83953626]
[1749403684438,0.23148527,106390.0,106380.0,1.82073637]
[1749403684850,0.22208625,106390.0,106380.0,1.82073637]
[1749403685062,0.20678625,106390.0,106380.0,1.82073637]
[1749403685919,0.20678625,106390.0,106380.0,1.82073655]
[1749403686902,0.19738696,106390.0,106380.0,1.82073655]
[1749403689886,0.18798759,106390.0,106380.0,1.62333103]
[1749403692335,0.18798759,106390.0,106380.0,1.62329103]
[1749403694567,0.18798759,106390.0,106380.0,2.2288647]
[1749403694770,0.18798759,106390.0,106380.0,2.21946444]
[1749403694979,0.18798759,106390.0,106380.0,2.23576444]
[1749403697249,0.20418759,106390.0,106380.0,1.02711762]
[1749403697466,0.22068759,106390.0,106380.0,0.72881762]
[1749403698313,0.21782343,106390.0,106380.0,0.72881762]
[1749403699376,0.21782343,106390.0,106380.0,1.32499103]
[1749403700643,0.20132343,106390.0,106380.0,1.32499103]
[1749403704468,0.18512343,106390.0,106380.0,1.32499103]
[1749403704885,0.20102343,106390.0,106380.0,1.32499103]
[1749403705300,0.20102343,106390.0,106380.0,1.32356135]
[1749403709577,0.20102343,106390.0,106380.0,1.32352135]
[1749403717118,0.18512343,106390.0,106380.0,1.32352135]
[1749403725163,0.18512343,106390.0,106380.0,1.32348135]
[1749403730178,0.18512343,106390.0,106380.0,1.32344135]
[1749403732766,0.18512343,106390.0,106380.0,1.03668135]
[1749403732968,0.18512343,106390.0,106380.0,1.32344135]
[1749403733197,0.18512343,106390.0,106380.0,1.03668135]
[1749403733479,0.18512343,106390.0,106380.0,1.32344135]
[1749403734972,0.18512343,106390.0,106380.0,1.31644135]
[1749403737096,0.18512343,106390.0,106380.0,1.02968135]
[1749403737296,0.18512343,106390.0,106380.0,1.31644135]
[1749403747523,0.18512343,106390.0,106380.0,1.02968135]
[1749403747724,0.20022343,106390.0,106380.0,0.97640135]
[1749403747927,0.27841061,106390.0,106380.0,0.09350794]
[1749403748144,0.27841061,106390.0,106380.0,0.38018794]
[1749403748346,0.29604182,106390.0,106380.0,0.97636135]
[1749403748547,0.25572249,106390.0,106380.0,0.97636135]
[1749403749067,0.25572245,106390.0,106380.0,0.97636135]
[1749403749313,0.25572242,106390.0,106380.0,0.97636135]
[1749403749568,0.23809128,106390.0,106380.0,0.97636135]
[1749403749805,0.25572243,106390.0,106380.0,0.97636135]
[1749403750973,0.22279128,106390.0,106380.0,0.97636135]
[1749403751463,0.20769128,106390.0,106380.0,0.97636135]
[1749403751868,0.22532243,106390.0,106380.0,0.97636135]
[1749403752496,0.20275458,106390.0,106380.0,0.97636135]
[1749403752639,0.20274949,106390.0,106380.0,0.97636135]
[1749403753073,0.18512343,106390.0,106380.0,0.97636135]
[1749403753287,0.20274949,106390.0,106380.0,0.97636135]
[1749403753496,0.18512343,106390.0,106380.0,0.97636135]
[1749403753696,0.20274949,106390.0,106380.0,0.97636135]
[1749403754426,0.18512343,106390.0,106380.0,0.97636135]
[1749403765312,0.18284496,106390.0,106380.0,0.97636135]
[1749403770565,0.18284496,106390.0,106380.0,0.38018794]
[1749403770978,0.18284496,106390.0,106380.0,0.97636135]
[1749403772186,0.18284496,106390.0,106380.0,0.97522477]
[1749403772781,0.19224416,106390.0,106380.0,1.16323003]
[1749403773007,0.19224416,106390.0,106380.0,1.21473028]
[1749403773877,0.18284496,106390.0,106380.0,1.20533029]
[1749403774422,0.18284496,106390.0,106380.0,0.91865029]
[1749403774650,0.18284496,106390.0,106380.0,1.18875029]
[1749403775223,0.18284496,106390.0,106380.0,1.17255029]
[1749403776378,0.18284496,106390.0,106380.0,1.20525029]
[1749403777314,0.20047612,106390.0,106380.0,1.20525029]
[1749403777732,0.22304397,106390.0,106380.0,1.20525029]
[1749403779201,0.22304398,106390.0,106380.0,1.20525029]
[1749403779646,0.20541281,106390.0,106380.0,1.21465046]
[1749403779898,0.22304398,106390.0,106380.0,1.01724503]
[1749403780094,0.20541281,106390.0,106380.0,1.01724503]
[1749403780304,0.22304398,106390.0,106380.0,1.01724503]
[1749403780517,0.20047613,106390.0,106380.0,1.01724503]
[1749403780951,0.21927461,106390.0,106380.0,1.82022377]
[1749403781164,0.21927443,106390.0,106380.0,1.82022395]
[1749403781576,0.20164344,106390.0,106380.0,1.82022395]
[1749403781797,0.21927437,106390.0,106380.0,1.81082387]
[1749403782011,0.20164344,106390.0,106380.0,1.82022395]
[1749403782192,0.20164344,106390.0,106380.0,1.82962385]
[1749403782444,0.20164344,106390.0,106380.0,1.82022395]
[1749403782652,0.21927432,106390.0,106380.0,1.82022395]
[1749403783149,0.20164344,106390.0,106380.0,1.82022395]
[1749403783349,0.21927432,106390.0,106380.0,1.82022395]
[1749403783765,0.21927435,106390.0,106380.0,1.82022395]
[1749403785019,0.20164344,106390.0,106380.0,1.82022395]
[1749403785421,0.21927435,106390.0,106380.0,1.82022395]
[1749403785827,0.20164344,106390.0,106380.0,1.82022395]
[1749403787093,0.19224433,106390.0,106380.0,1.82022395]
[1749403787507,0.19224433,106390.0,106380.0,1.22405054]
[1749403789058,0.19224433,106390.0,106380.0,1.82022395]
[1749403790881,0.19224433,106390.0,106380.0,0.62787713]
[1749403791087,0.19224433,106390.0,106380.0,1.82022395]
[1749403794555,0.19224433,106390.0,106380.0,1.81082387]
[1749403795645,0.18284496,106390.0,106380.0,1.81082387]
[1749403800586,0.18284496,106390.0,106380.0,1.21465046]
[1749403801513,0.18284496,106390.0,106380.0,1.81082387]
[1749403803173,0.18284496,106390.0,106380.0,1.61341844]
[1749403804664,0.17784496,106390.0,106380.0,1.31741818]
[1749403804872,0.17784496,106390.0,106380.0,0.97502477]
[1749403805493,0.20914496,106390.0,106380.0,0.97502477]
[1749403805703,0.22677297,106390.0,106380.0,0.97502477]
[1749403806117,0.21127291,106390.0,106380.0,0.97502477]
[1749403806347,0.2112729,106390.0,106380.0,0.97502477]
[1749403806766,0.19364496,106390.0,106380.0,0.97502477]
[1749403806967,0.2112729,106390.0,106380.0,0.97502477]
[1749403807403,0.19364496,106390.0,106380.0,0.97502477]
[1749403807607,0.21127289,106390.0,106380.0,0.97502477]
[1749403807825,0.19547289,106390.0,106380.0,0.97502477]
[1749403808269,0.17784496,106390.0,106380.0,0.97502477]
[1749403808475,0.19547294,106390.0,106380.0,1.00702477]
[1749403808690,0.19547294,106390.0,106380.0,1.00698477]
[1749403808900,0.17784496,106390.0,106380.0,1.00698477]
[1749403809114,0.19547336,106390.0,106380.0,0.99138477]
[1749403809320,0.19547336,106390.0,106380.0,0.97498477]
[1749403810795,0.17784496,106390.0,106380.0,0.97498477]
[1749403811005,0.19547336,106390.0,106380.0,0.97498477]
[1749403812060,0.17784496,106390.0,106380.0,0.97498477]
[1749403812454,0.19547392,106390.0,106380.0,0.97498477]
[1749403812658,0.19547393,106390.0,106380.0,0.97498477]
[1749403813704,0.19547375,106390.0,106380.0,0.97498477]
[1749403813905,0.19424614,106390.0,106380.0,0.97498477]
[1749403814310,0.17661735,106390.0,106380.0,0.97498477]
[1749403814513,0.19424614,106390.0,106380.0,0.97498477]
[1749403814662,0.17661735,106390.0,106380.0,0.97498477]
[1749403815018,0.19424614,106390.0,106380.0,0.97498477]
[1749403815780,0.19424603,106390.0,106380.0,0.97498477]
[1749403815971,0.19424602,106390.0,106380.0,0.97498477]
[1749403816174,0.17661735,106390.0,106380.0,0.97498477]
[1749403816378,0.19424603,106390.0,106380.0,0.97498477]
[1749403816825,0.19424598,106390.0,106380.0,0.97498477]
[1749403817230,0.17661735,106390.0,106380.0,0.97498477]
[1749403817405,0.19424598,106390.0,106380.0,0.97498477]
[1749403818003,0.19424598,106390.0,106380.0,0.68854477]
[1749403818204,0.19424598,106390.0,106380.0,0.97494477]
[1749403819081,0.17661735,106390.0,106380.0,0.97494477]
[1749403819264,0.19424598,106390.0,106380.0,0.97494477]
[1749403819437,0.17661735,106390.0,106380.0,0.97494477]
[1749403819976,0.19424598,106390.0,106380.0,0.97494477]
[1749403820202,0.17661735,106390.0,106380.0,0.37877136]
[1749403820397,0.20974598,106390.0,106380.0,0.97494477]
[1749403820714,0.19211735,106390.0,106380.0,0.97494477]
[1749403820980,0.20974597,106390.0,106380.0,0.97494477]
[1749403821187,0.19211735,106390.0,106380.0,0.97494477]
[1749403821401,0.17661735,106390.0,106380.0,0.97494477]
[1749403821593,0.19424594,106390.0,106380.0,0.97494477]
[1749403822652,0.19424579,106390.0,106380.0,0.97494477]
[1749403822859,0.19424587,106390.0,106380.0,0.97494477]
[1749403823685,0.19424587,106390.0,106380.0,0.68854477]
[1749403823915,0.19424587,106390.0,106380.0,0.97494477]
[1749403824106,0.17661735,106390.0,106380.0,0.97494477]
[1749403824312,0.19424583,106390.0,106380.0,0.97494477]
[1749403824738,0.17661735,106390.0,106380.0,0.97494477]
[1749403824948,0.19424584,106390.0,106380.0,0.97494477]
[1749403826447,0.17661735,106390.0,106380.0,0.97494477]
[1749403826644,0.19424584,106390.0,106380.0,0.97494477]
[1749403827718,0.19424605,106390.0,106380.0,0.97494477]
[1749403828049,0.19424606,106390.0,106380.0,0.97494477]
[1749403828314,0.17661735,106390.0,106380.0,0.97494477]
[1749403828510,0.19424606,106390.0,106380.0,0.97494477]
[1749403828713,0.19424605,106390.0,106380.0,0.97494477]
[1749403829740,0.17661735,106390.0,106380.0,0.97494477]
[1749403829960,0.19424605,106390.0,106380.0,0.97494477]
[1749403830111,0.17661735,106390.0,106380.0,0.97494477]
[1749403830674,0.19424606,106390.0,106380.0,0.97494477]
[1749403831217,0.19240876,106390.0,106380.0,0.97494477]
[1749403831668,0.17478003,106390.0,106380.0,0.97494477]
[1749403832208,0.19240922,106390.0,106380.0,0.97494477]
[1749403832613,0.19240922,106390.0,106380.0,0.37877136]
[1749403832818,0.19240922,106390.0,106380.0,0.97494477]
[1749403833249,0.19240928,106390.0,106380.0,0.97494477]
[1749403833490,0.17478003,106390.0,106380.0,0.97494477]
[1749403833705,0.19240928,106390.0,106380.0,0.97494477]
[1749403833905,0.19240929,106390.0,106380.0,0.97494477]
[1749403834937,0.54900929,106390.0,106380.0,0.003]
[1749403835150,0.58677482,106390.0,106380.0,0.003]
[1749403835374,0.5867757,106390.0,106380.0,0.003]
[1749403835586,0.58677597,106390.0,106380.0,0.003]
[1749403835795,0.56914485,106390.0,106380.0,0.003]
[1749403836021,0.61498234,106390.0,106380.0,0.002]
[1749403836225,0.71138182,106390.0,106380.0,0.002]
[1749403836435,0.53740534,106380.0,106370.0,1.18838841]
[1749403836655,0.55997016,106380.0,106370.0,1.28478789]
[1749403836863,0.57760164,106380.0,106370.0,1.28478789]
[1749403837060,0.57760165,106380.0,106370.0,1.28478789]
[1749403837291,0.57760165,106380.0,106370.0,0.98648789]
[1749403837499,0.55997016,106380.0,106370.0,0.98648789]
[1749403837706,0.57764954,106380.0,106370.0,0.70012789]
[1749403837914,0.56001805,106380.0,106370.0,0.70012789]
[1749403838117,0.56001805,106380.0,106370.0,0.98557133]
[1749403838316,0.56001805,106380.0,106370.0,0.98757133]
[1749403838736,0.56001805,106380.0,106370.0,0.98857133]
[1749403840078,0.56001805,106380.0,106370.0,0.70221133]
[1749403840533,0.53745323,106380.0,106370.0,0.98857133]
[1749403845091,0.19745323,106380.0,106370.0,0.98857133]
[1749403847814,0.19745323,106380.0,106370.0,0.70221133]
[1749403848175,0.19745323,106380.0,106370.0,0.98857133]
[1749403859687,0.21255323,106380.0,106370.0,0.98857133]
[1749403860753,0.19745323,106380.0,106370.0,0.98857133]
[1749403862537,0.21999439,106380.0,106370.0,0.98857133]
[1749403864382,0.21999439,106380.0,106370.0,0.70221133]
[1749403864579,0.21999439,106380.0,106370.0,0.98857133]
[1749403870589,0.21999439,106380.0,106370.0,0.39239792]
[1749403871003,0.21999439,106380.0,106370.0,0.98857133]
[1749403871212,0.21999439,106380.0,106370.0,0.70221133]
[1749403871420,0.21999439,106380.0,106370.0,0.98853133]
[1749403871616,0.21999439,106380.0,106370.0,0.70221133]
[1749403871823,0.21999439,106380.0,106370.0,0.98853133]
[1749403874035,0.21999439,106380.0,106370.0,0.39235792]
[1749403879651,0.21999439,106380.0,106370.0,0.10603792]
[1749403879862,0.21999439,106380.0,106370.0,0.39235792]
[1749403882169,0.21999439,106380.0,106370.0,0.40755792]
[1749403883068,0.21999439,106380.0,106370.0,0.39235792]
[1749403883848,0.21999439,106380.0,106370.0,0.98853133]
[1749403886408,1.34999439,106380.0,106370.0,0.98853133]
[1749403886656,1.36762682,106380.0,106370.0,1.02013133]
[1749403887377,1.36762682,106380.0,106370.0,0.98853133]
[1749403887378,1.34999439,106380.0,106370.0,0.98853133]
[1749403887631,1.3676268,106380.0,106370.0,0.98853133]
[1749403887908,1.3676268,106380.0,106370.0,0.00963844]
[1749403888108,1.47789387,106380.0,106370.0,0.29591844]
[1749403888324,1.49552671,106380.0,106370.0,0.29591844]
[1749403888526,1.49552697,106380.0,106370.0,0.29591844]
[1749403888937,1.39912752,106380.0,106370.0,0.00963844]
[1749403889140,1.38149439,106380.0,106370.0,0.29291844]
[1749403889346,1.39912777,106380.0,106370.0,0.29291844]
[1749403889550,1.39912778,106380.0,106370.0,0.29291844]
[1749403889766,1.38149439,106380.0,106370.0,0.29291844]
[1749403890002,1.39912778,106380.0,106370.0,0.29291844]
[1749403890251,1.39912778,106380.0,106370.0,0.00663844]
[1749403890578,1.39912778,106380.0,106370.0,0.29291844]
[1749403890961,1.42730795,106380.0,106370.0,0.00663844]
[1749403891156,1.52370743,106380.0,106370.0,0.29291844]
[1749403891364,1.42730141,106380.0,106370.0,0.00663844]
[1749403891607,1.46486965,106380.0,106370.0,0.00663844]
[1749403891833,1.46486984,106380.0,106370.0,0.00663844]
[1749403892915,1.46485004,106380.0,106370.0,0.00663844]
[1749403893175,1.73352193,106380.0,106370.0,0.00663844]
[1749403893926,1.80798198,106380.0,106370.0,0.00663844]
[1749403894141,2.27255234,106380.0,106370.0,0.00663844]
[1749403894339,2.27254776,106380.0,106370.0,0.00663844]
[1749403894544,2.23498662,106380.0,106370.0,0.00663844]
[1749403894806,2.2173769,106380.0,106370.0,0.00663844]
[1749403895061,2.23498716,106380.0,106370.0,0.00663844]
[1749403895316,2.23598719,106380.0,106370.0,0.00663844]
[1749403895814,2.2193769,106380.0,106370.0,0.00663844]
[1749403896067,2.23698568,106380.0,106370.0,0.00663844]
[1749403896325,1.95070568,106380.0,106370.0,0.00663844]
[1749403896573,2.28757379,106380.0,106370.0,0.00663844]
[1749403896816,2.3051825,106380.0,106370.0,0.00663844]
[1749403897018,2.28757379,106380.0,106370.0,0.00663844]
[1749403897435,2.30371283,106380.0,106370.0,0.00663844]
[1749403898246,2.28610414,106380.0,106370.0,0.00663844]
[1749403898458,2.30368638,106380.0,106370.0,0.00663844]
[1749403898606,2.28610414,106380.0,106370.0,0.00663844]
[1749403898806,1.91230414,106380.0,106370.0,0.00663844]
[1749403899177,2.28610414,106380.0,106370.0,0.00663844]
[1749403899483,2.18970466,106380.0,106370.0,0.00663844]
[1749403899688,1.78767883,106380.0,106370.0,0.00663844]
[1749403899900,1.87515883,106380.0,106370.0,0.00663844]
[1749403900720,1.80612996,106380.0,106370.0,0.00663844]
[1749403901901,1.77800474,106380.0,106370.0,0.00663844]
[1749403903750,1.43800474,106380.0,106370.0,0.03773844]
[1749403904116,1.43800474,106380.0,106370.0,0.03700517]
[1749403911235,1.4822811,106380.0,106370.0,0.03700517]
[1749403911646,1.49986773,106380.0,106370.0,0.03700517]
[1749403912345,1.49987058,106380.0,106370.0,0.03700517]
[1749403912879,1.4822811,106380.0,106370.0,0.03700517]
[1749403913114,1.45559422,106380.0,106370.0,0.03700517]
[1749403914121,1.43800474,106380.0,106370.0,0.03700517]
[1749403914320,1.45559422,106380.0,106370.0,0.03700517]
[1749403914520,1.43800474,106380.0,106370.0,0.03700517]
[1749403914993,1.45559422,106380.0,106370.0,0.03700517]
[1749403915495,1.51528982,106380.0,106370.0,0.03700517]
[1749403917117,1.51529532,106380.0,106370.0,0.03700517]
[1749403917871,1.43800474,106380.0,106370.0,0.03700517]
[1749403918074,1.45560211,106380.0,106370.0,0.03700517]
[1749403918487,1.43800474,106380.0,106370.0,0.03700517]
[1749403918895,1.45560211,106380.0,106370.0,0.03700517]
[1749403919641,1.43800474,106380.0,106370.0,0.03700517]
[1749403920263,1.45560198,106380.0,106370.0,0.03700517]
[1749403920675,1.45560339,106380.0,106370.0,0.03700517]
[1749403920845,1.43800474,106380.0,106370.0,0.03700517]
[1749403921082,1.47279932,106380.0,106370.0,0.03700517]
[1749403921291,1.45520067,106380.0,106370.0,0.03700517]
[1749403921835,1.47279931,106380.0,106370.0,0.03700517]
[1749403922424,1.43800474,106380.0,106370.0,0.03700517]
[1749403922627,1.45560461,106380.0,106370.0,0.03700517]
[1749403922974,1.43800474,106380.0,106370.0,0.03700517]
[1749403923181,1.45560281,106380.0,106370.0,0.03700517]
[1749403923597,1.45560281,106380.0,106370.0,0.03070517]
[1749403924279,1.45560432,106380.0,106370.0,0.03070517]
[1749403924724,1.43800474,106380.0,106370.0,0.03070517]
[1749403924944,1.45560432,106380.0,106370.0,0.03070517]
[1749403925170,1.45560429,106380.0,106370.0,0.03070517]
[1749403926147,1.43800474,106380.0,106370.0,0.03070517]
[1749403926968,1.4556043,106380.0,106370.0,0.03070517]
[1749403927176,1.45560429,106380.0,106370.0,0.03070517]
[1749403927513,1.45560561,106380.0,106370.0,0.03070517]
[1749403927728,1.45562001,106380.0,106370.0,0.03070517]
[1749403927937,1.49131235,106380.0,106370.0,0.03070517]
[1749403928134,1.50892762,106380.0,106370.0,0.03070517]
[1749403928553,1.42144762,106380.0,106370.0,0.03070517]
[1749403929188,1.40383235,106380.0,106370.0,0.03070517]
[1749403929542,1.42144762,106380.0,106370.0,0.03070517]
[1749403929752,1.40383235,106380.0,106370.0,0.03070517]
[1749403929907,1.42144762,106380.0,106370.0,0.03070517]
[1749403930128,1.40383235,106380.0,106370.0,0.03070517]
[1749403930316,1.42144838,106380.0,106370.0,0.03070517]
[1749403931258,1.40383235,106380.0,106370.0,0.03070517]
[1749403931790,1.42146503,106380.0,106370.0,0.03070517]
[1749403932058,1.40383235,106380.0,106370.0,0.03070517]
[1749403932249,1.44959025,106380.0,106370.0,0.03070517]
[1749403932456,0.1974239,106370.0,106360.0,0.91349341]
[1749403932670,0.21996506,106370.0,106360.0,1.00989289]
[1749403933476,0.21996506,106370.0,106360.0,0.41371948]
[1749403935971,0.21996506,106370.0,106360.0,1.00989289]
[1749403940055,0.19744246,106360.0,106350.0,0.61147341]
[1749403940257,0.19744246,106360.0,106350.0,0.41417948]
[1749403940527,0.19744246,106360.0,106350.0,0.12789948]
[1749403940727,0.19744246,106360.0,106350.0,0.38267948]
[1749403941312,0.19744246,106360.0,106350.0,0.38467948]
[1749403941587,0.19744246,106360.0,106350.0,0.38667948]
[1749403942198,0.19744246,106360.0,106350.0,0.41817948]
[1749403943302,0.19744246,106360.0,106350.0,1.01435289]
[1749403944281,0.19744246,106360.0,106350.0,0.99905289]
[1749403944522,0.19744246,106360.0,106350.0,0.99896564]
[1749403946110,0.19744246,106360.0,106350.0,1.01436564]
[1749403947461,0.19744246,106360.0,106350.0,0.98276564]
[1749403948649,0.19744246,106360.0,106350.0,1.01376564]
[1749403951171,0.19744246,106360.0,106350.0,0.72748564]
[1749403951410,0.19744246,106360.0,106350.0,1.01376564]
[1749403956494,0.19744246,106360.0,106350.0,0.98272564]
[1749403956716,0.19744246,106360.0,106350.0,0.10031223]
[1749403956925,0.19744246,106360.0,106350.0,0.38655223]
[1749403957134,0.29747105,106360.0,106350.0,0.004]
[1749403957339,1.32346102,106350.0,106340.0,0.29546358]
[1749403957541,1.34601341,106350.0,106340.0,0.39186306]
[1749403957721,1.34601341,106350.0,106340.0,0.10562306]
[1749403957926,0.1974796,106340.0,106330.0,0.70362071]
[1749403958260,0.1974796,106340.0,106330.0,1.08626019]
[1749403958460,0.1974796,106340.0,106330.0,1.09566487]
[1749403958668,0.1974796,106340.0,106330.0,0.81903133]
[1749403958900,0.1974796,106340.0,106330.0,1.10527133]
[1749403959348,0.1974796,106340.0,106330.0,1.10875119]
[1749403959726,0.20688313,106340.0,106330.0,1.29684486]
[1749403959955,0.20688313,106340.0,106330.0,1.30624945]
[1749403960615,0.20688313,106340.0,106330.0,1.30924945]
[1749403961460,0.20688313,106340.0,106330.0,1.30928945]
[1749403961665,0.20688313,106340.0,106330.0,1.02300945]
[1749403961867,0.20688313,106340.0,106330.0,1.30928945]
[1749403962297,0.20688313,106340.0,106330.0,1.24334665]
[1749403962719,0.20688313,106340.0,106330.0,1.25275106]
[1749403965404,0.1974796,106340.0,106330.0,0.95706665]
[1749403965606,0.1974796,106340.0,106330.0,1.24334665]
[1749403966373,0.1974796,106340.0,106330.0,0.64717324]
[1749403966627,0.1974796,106340.0,106330.0,1.24334665]
[1749403968213,0.18807598,106340.0,106330.0,0.70865921]
[1749403968375,0.18807598,106340.0,106330.0,1.19243747]
[1749403968989,0.18807598,106340.0,106330.0,1.19243738]
[1749403970510,0.18807598,106340.0,106330.0,0.90615738]
[1749403970710,0.18807598,106340.0,106330.0,1.19243738]
[1749403971454,0.18807598,106340.0,106330.0,1.20893738]
[1749403971676,0.18807598,106340.0,106330.0,1.19243738]
[1749403972719,0.18807598,106340.0,106330.0,1.22463738]
[1749403972953,0.18807598,106340.0,106330.0,1.23404179]
[1749403978070,0.18807598,106340.0,106330.0,1.23400179]
[1749403979604,0.18807598,106340.0,106330.0,1.24340611]
[1749403979911,1.13540264,106350.0,106340.0,0.24808622]
[1749403980124,1.14480449,106350.0,106340.0,1.55137337]
[1749403980559,1.14480449,106350.0,106340.0,1.64137337]
[1749403980798,1.15420705,106350.0,106340.0,1.64137337]
[1749403981334,1.15420705,106350.0,106340.0,1.64337337]
[1749403982131,1.16360978,106350.0,106340.0,1.64337337]
[1749403987005,1.1730126,106350.0,106340.0,1.64337337]
[1749403988064,1.3422664,106350.0,106340.0,0.42281631]
[1749403988273,1.3422664,106350.0,106340.0,1.64337389]
[1749403988480,1.3422664,106350.0,106340.0,1.62456692]
[1749403988678,1.3422664,106350.0,106340.0,1.64337407]
[1749403989233,1.3422664,106350.0,106340.0,1.04720066]
[1749403990810,1.32346111,106350.0,106340.0,1.30009266]
[1749403991026,1.32346111,106350.0,106340.0,1.30949628]
[1749403992786,1.32346111,106350.0,106340.0,0.71332287]
[1749403993020,1.32346111,106350.0,106340.0,1.3030491]
[1749403994423,1.32346111,106350.0,106340.0,1.29364548]
[1749403994795,1.32346111,106350.0,106340.0,1.30304919]
[1749403995140,1.31405829,106350.0,106340.0,1.30304919]
[1749403997815,1.31405829,106350.0,106340.0,1.29364548]
[1749403998028,1.31405829,106350.0,106340.0,1.11201668]
[1749403998253,1.31405829,106350.0,106340.0,1.10261289]
[1749403998763,1.31405829,106350.0,106340.0,0.78457289]
[1749403998972,1.31405829,106350.0,106340.0,1.07077289]
[1749404001455,1.31405829,106350.0,106340.0,0.98077289]
[1749404007887,1.32935829,106350.0,106340.0,0.69457289]
[1749404008087,1.34585829,106350.0,106340.0,0.98073289]
[1749404009146,1.36842161,106350.0,106340.0,0.38455948]
[1749404009346,1.36842161,106350.0,106340.0,0.98073289]
[1749404010736,1.34585829,106350.0,106340.0,0.98073289]
[1749404011639,1.34585829,106350.0,106340.0,0.38455948]
[1749404012075,1.34585829,106350.0,106340.0,0.09839948]
[1749404012278,1.34585829,106350.0,106340.0,0.28816]
[1749404012478,1.46429731,106350.0,106340.0,0.28816]
[1749404013115,1.36841995,106350.0,106340.0,0.28816]
[1749404017867,1.36841995,106350.0,106340.0,0.29326083]
[1749404018313,1.36841995,106350.0,106340.0,0.00710083]
[1749404018527,1.36841995,106350.0,106340.0,0.29326083]
[1749404020281,1.35191995,106350.0,106340.0,0.29326083]
[1749404022209,1.31405829,106350.0,106340.0,0.29326083]
[1749404022427,1.31405829,106350.0,106340.0,0.88943424]
[1749404023046,1.3234612,106350.0,106340.0,1.21561349]
[1749404023269,1.3234612,106350.0,106340.0,1.2250172]
[1749404023463,1.3234612,106350.0,106340.0,1.23442082]
[1749404024100,1.3234612,106350.0,106340.0,1.2250172]
[1749404024485,1.3234612,106350.0,106340.0,1.23442082]
[1749404028733,1.3234612,106350.0,106340.0,1.2250172]
[1749404029555,1.33286384,106350.0,106340.0,1.23442064]
[1749404029761,1.33286384,106350.0,106340.0,1.2250172]
[1749404031274,1.3234612,106350.0,106340.0,1.02753751]
[1749404034899,1.3234612,106350.0,106340.0,0.38966031]
[1749404037747,1.3234612,106350.0,106340.0,0.98583372]
[1749404038146,1.3234612,106350.0,106340.0,0.99523751]
[1749404038354,1.3234612,106350.0,106340.0,1.01763372]
[1749404042187,1.3234612,106350.0,106340.0,0.42146031]